Cogmind - Beta 15 @@@ ROGUE MODE // 2025.06.04 @ 20:52:08 Player: EX-OCT Result: Escaped! Performance ------------- Evolutions (9) 4500 Regions Visited (23) 4600 Robots Destroyed (88) 440 Value Destroyed (5249) 5249 Prototype IDs (366) 7320 Alien Tech Used (1) 200 Bonus (26278) 26278 TOTAL SCORE: 48587 Bonus ------- High Alert Combat Kills 209 Follower Combat Kills 2781 Registered with UFD 300 Met Optimus in HQ 500 Met Imprinter 300 Destroyed Z-Imprinter 1000 Met Zhirov 300 Built Enhanced Grunts 300 A7 Reached Mainframe 300 Acquired SGEMP 2000 Delivered SGEMP 2000 Met MAIN.C 5000 Hacked MAIN.C 300 Destroyed MAIN.C Shell 5000 Zhirov Destroyed MAIN.C 3000 Win 3000 Friendly Fire -12 Cogmind --------- Core Integrity 1344/1600 Matter 249/300 Energy 467/490 System Corruption 21% Temperature Cool (15) Movement Treading (158) Location To Epsilon Eridani Parts ------- > --- POWER (2) -------- Quantum Reactor Zero-point Reactor > --- PROPULSION (6) --- Armored Heavy Treads Biometal Heavy Treads Advanced Heavy Siege Treads > --- UTILITY (13) ----- Advanced Heat Sink Huge Storage Unit Advanced Sensor Array Advanced Signal Interpreter Experimental Targeting Computer Experimental Propulsion Shielding Centrium Medium Armor Plating Experimental Powered Armor Advanced Thermal Shield Thermal Barrier Point Defense System Advanced Point Defense System Advanced System Shield > --- WEAPON (4) ------- Multirail Omega Cannon Companion Sword > --- INVENTORY (25) --- Light Quantum Reactor Light Quantum Reactor Biometal Medium Treads Biometal Medium Treads Biometal Medium Treads Biometal Medium Treads Biometal Medium Treads Biometal Medium Treads Advanced Heat Sink High-capacity Storage Unit Advanced Matter Compressor (400) Transdimensional Reconstructor Phase Gun Enhanced Quantum Rifle Heavy Disruptor Cannon Helical Railgun Enhanced Hardcell Cannon Micro-nuke Launcher Improved Remote Datajack Advanced Remote Datajack Portable AFG (100) Peak State ------------ > --- POWER ------------ Quantum Reactor Zero-point Reactor > --- PROPULSION ------- Armored Heavy Treads Biometal Heavy Treads Advanced Heavy Siege Treads > --- UTILITY ---------- Advanced Heat Sink Huge Storage Unit Advanced Sensor Array Advanced Signal Interpreter Experimental Targeting Computer Experimental Propulsion Shielding Centrium Medium Armor Plating Experimental Powered Armor Advanced Thermal Shield Thermal Barrier Point Defense System Advanced Point Defense System Advanced System Shield > --- WEAPON ----------- Multirail Omega Cannon Companion Sword > --- INVENTORY -------- Light Quantum Reactor Light Quantum Reactor Biometal Medium Treads Biometal Medium Treads Biometal Medium Treads Biometal Medium Treads Biometal Medium Treads Biometal Medium Treads Advanced Heat Sink High-capacity Storage Unit Advanced Matter Compressor Transdimensional Reconstructor Phase Gun Enhanced Quantum Rifle Heavy Disruptor Cannon Helical Railgun Enhanced Hardcell Cannon Micro-nuke Launcher Improved Remote Datajack Advanced Remote Datajack Portable AFG [Rating: 217] Favorites ----------- Power Reinforced Deuterium Engine Engine Reinforced Deuterium Engine Power Core Light Fission Core Reactor Zero-point Reactor Propulsion Centrium Heavy Treads Treads Centrium Heavy Treads Leg Enhanced Flexi-carbon Leg Wheel Armored Huge Wheel Hover Unit Antigrav System Flight Unit Makeshift Flight Unit Utility Improved Hacking Suite Device Structural Scanner Storage Medium Storage Unit Processor Advanced Signal Interpreter Hackware Improved Hacking Suite Protection Centrium Medium Armor Plating Weapon Companion Sword Energy Gun Advanced Variable Charge Gun Energy Cannon Heavy Disruptor Cannon Ballistic Gun Gauss Rifle Ballistic Cannon Enhanced Hardcell Cannon Launcher Tiamat Missile Launcher Special Weapon Improved Remote Datajack Impact Weapon Makeshift Hammer Slashing Weapon Companion Sword Piercing Weapon CR-A16's Pointy Stick Special Melee Weapon Datajack Build | -11 -10 -10 -8 -6 -6 -6 -6 -6 -5 -5 -5 -5 -5 -4 -4 -4 -4 -3 -3 -2 -2 -1 -1 ------- Run | Yrd Mat Sub Scr Fac Low Low Zio Dee Pro Fac Ext Cet Arc Fac Upp Upp Zhi Pro Res Res Tes Acc Com Slots Evolved 18 | . . . . 8 . . . . . 2 . . . 2 . . . . 2 2 . 2 . Power 1 | . . . . . . . . . . . . . . . . . . . 1 . . . . Propulsion 4 | . . . . 4 . . . . . . . . . . . . . . . . . . . Utility 11 | . . . . 4 . . . . . 2 . . . 2 . . . . 1 2 . . . Weapon 2 | . . . . . . . . . . . . . . . . . . . . . . 2 . Parts Attached 203 | . 6 5 8 20 1 . 3 7 6 19 19 6 7 8 . . 3 2 9 13 24 10 27 Power 22 | . 1 1 . 4 . . . . 2 4 1 . . . . . 1 . . 1 2 . 5 Engine 7 | . 1 1 . 4 . . . . . . 1 . . . . . . . . . . . . Core 6 | . . . . . . . . . 2 4 . . . . . . . . . . . . . Reactor 9 | . . . . . . . . . . . . . . . . . 1 . . 1 2 . 5 Propulsion 66 | . 1 1 1 8 . . . 4 2 9 12 4 2 1 . . . . 1 5 8 1 6 Treads 33 | . . . . . . . . . . . 7 2 2 1 . . . . 1 5 8 1 6 Leg 12 | . . . . . . . . 2 2 1 5 2 . . . . . . . . . . . Wheel 4 | . . 1 . . . . . . . 3 . . . . . . . . . . . . . Hover 6 | . 1 . 1 . . . . . . 4 . . . . . . . . . . . . . Flight 11 | . . . . 8 . . . 2 . 1 . . . . . . . . . . . . . Utility 75 | . 2 . 3 7 1 . . 2 . 4 4 2 3 7 . . 2 1 5 6 10 4 12 Device 33 | . 1 . 1 2 1 . . 1 . 1 . . . 4 . . 1 . 3 4 5 2 7 Storage 7 | . . . 1 . . . . 1 . 1 . . . . . . . . . 1 2 1 . Processor 6 | . . . . 1 . . . . . 1 . . . . . . . . 1 1 1 . 1 Hackware 13 | . 1 . . 4 . . . . . 1 . . 3 1 . . . 1 1 . 1 . . Protection 16 | . . . 1 . . . . . . . 4 2 . 2 . . 1 . . . 1 1 4 Artifact . | . . . . . . . . . . . . . . . . . . . . . . . . Weapon 40 | . 2 3 4 1 . . 3 1 2 2 2 . 2 . . . . 1 3 1 4 5 4 Energy Gun 8 | . . 1 . . . . . . . . . . 1 . . . . . 1 . 1 3 1 Energy Cannon 3 | . . . . . . . . 1 . . . . . . . . . . . 1 . . 1 Ballistic Gun 10 | . . 1 3 . . . 1 . 1 . 1 . 1 . . . . . . . 2 . . Ballistic Cannon 4 | . . . . . . . . . . . . . . . . . . . . . 1 1 2 Launcher 4 | . 1 . . . . . . . . . 1 . . . . . . . 2 . . . . Special Weapon 7 | . . . . 1 . . 2 . . 2 . . . . . . . 1 . . . 1 . Impact Weapon 1 | . . 1 . . . . . . . . . . . . . . . . . . . . . Slashing Weapon 1 | . . . 1 . . . . . . . . . . . . . . . . . . . . Piercing Weapon 1 | . . . . . . . . . 1 . . . . . . . . . . . . . . Special Melee Weapon 1 | . 1 . . . . . . . . . . . . . . . . . . . . . . Unidentified Prototypes 33 | . 1 . 1 2 . . 1 3 . 1 . 2 2 . . . 4 1 4 3 8 . . Corrupted Parts 5 | . . . . . . . . . . . 2 1 2 . . . . . . . . . . System Corruption 43 | . . . . . . . . . . . 23 3 17 . . . . . . . . . . Parts Lost 73 | . . 1 . 2 . . . 5 3 10 15 1 . . . . . . 2 2 11 . 21 Power 11 | . . . . . . . . 2 1 2 1 . . . . . . . . . 3 . 2 Propulsion 25 | . . . . 2 . . . 2 2 4 9 1 . . . . . . . . 2 . 3 Utility 27 | . . . . . . . . 1 . 3 3 . . . . . . . 2 2 4 . 12 Weapon 10 | . . 1 . . . . . . . 1 2 . . . . . . . . . 2 . 4 Highest Loss Streak 12 | . . 1 . 1 . . . 4 3 5 12 1 . . . . . . 1 2 5 . 4 To Critical Strikes 2 | . . . . . . . . . . . . . . . . . . . . . 1 . 1 Average Backups 11 | . 2 3 6 11 14 14 13 12 8 9 8 8 9 9 9 9 8 9 7 7 6 14 19 Power . | . . . . . 2 2 2 1 . . 2 2 2 1 1 1 1 1 . . . . 1 Propulsion 2 | . . . 1 1 2 2 2 2 . 1 . . 1 1 1 1 1 1 . 1 1 3 5 Utility 2 | . 1 1 2 3 6 6 5 3 3 1 . 1 1 2 3 3 3 2 2 2 . 4 4 Weapon 3 | . . 1 2 3 3 3 3 3 3 4 3 2 3 2 2 2 2 2 2 2 2 4 6 Tool/Special . | . . . . . . . . . . . . . . . . . . . . . . . . Unused Backups 21 | . . 2 . 2 . . 2 . . 1 . . 1 1 . . 1 1 1 . . . 9 Power 5 | . . . . . . . . . . 1 . . 1 . . . 1 . . . . . 2 Propulsion 5 | . . . . . . . . . . . . . . . . . . . 1 . . . 4 Utility 7 | . . 2 . 1 . . 2 . . . . . . 1 . . . 1 . . . . . Weapon 2 | . . . . . . . . . . . . . . . . . . . . . . . 2 Tool/Special 2 | . . . . 1 . . . . . . . . . . . . . . . . . . 1 Average Slot Usage (%) 82 | . 42 85 75 91 100 100 100 93 97 74 84 90 87 85 84 84 83 82 81 84 83 85 74 Engine 1 | . . 8 2 4 6 6 6 5 . . 2 5 5 5 5 5 3 . 4 1 . . . Reactor 3 | . . . . . . . . . . . . . . . . . 1 5 4 6 4 4 7 Treads 9 | . . . . . . . . . . . 7 13 21 17 15 15 15 15 14 14 15 16 11 Leg 2 | . . . . . . . . . 21 10 9 10 1 . . . . . . . . . . Hover 2 | . 9 14 24 2 . . . . . 8 5 . . . . . . . . . . . . Flight 4 | . . . . 36 40 40 40 39 15 3 2 . . . . . . . . . . . . Device 13 | . 13 14 2 4 6 6 6 5 6 10 9 5 5 9 15 15 14 15 14 18 17 19 20 Storage 5 | . . . 5 6 6 6 6 6 6 5 5 5 5 5 5 5 5 5 4 7 7 4 4 Processor 3 | . . . . 4 6 6 6 6 6 4 5 1 . . . . . . 3 4 4 4 6 Hackware 14 | . 10 14 14 19 20 20 20 20 20 11 11 11 12 19 21 21 21 21 17 17 18 16 5 Protection 6 | . . . 4 . . . . . . . 7 21 21 16 10 10 10 10 8 4 5 6 8 Energy Gun 1 | . . 1 . . . . . . . . . . . 1 5 5 5 4 . 4 . 5 . Ballistic Gun 2 | . . 9 11 . . . 2 1 4 2 2 1 . 4 5 5 5 3 . . 2 3 . Special Weapon 1 | . . . . 4 6 6 6 1 . 1 4 3 5 . . . . . 2 . . 2 3 Slashing Weapon 3 | . . . 5 6 6 6 3 4 6 3 2 3 4 3 . . . . 2 3 3 3 3 Peak Build Rating 217 | . 9 14 21 63 63 62 62 71 67 69 74 102 104 127 127 127 132 135 145 156 183 183 217 Average Rating 114 | . 4 10 15 55 62 62 61 59 64 57 57 93 100 120 127 127 127 132 136 147 156 170 174 On Entrance 84 | . . 6 14 19 63 62 62 62 47 66 68 74 102 104 127 127 127 132 135 133 147 161 183 Naked Turns 9 | . 9 . . . . . . . . . . . . . . . . . . . . . . Heaviest Build 191 | . 2 13 24 41 38 37 37 36 36 44 53 67 60 71 67 67 70 70 87 87 98 141 191 Greatest Support 241 | 3 6 16 16 44 38 38 38 56 91 99 109 160 216 230 160 160 160 160 235 241 235 155 220 Greatest Overweight (x) 8 | . . 2 1 . . . . 1 . 1 8 . . . . . . . . . . . 1 Average Overweight (x) . | . . . . . . . . . . . . . . . . . . . . . . . . Largest Inventory Capacity 25 | 5 5 5 15 15 15 15 15 15 15 15 10 10 10 10 10 10 10 10 10 10 20 25 25 Average Capacity 14 | 5 5 5 8 15 15 15 15 15 15 13 10 10 10 10 10 10 10 10 10 10 13 23 25 Most Carried 25 | . 4 5 15 15 15 15 15 15 13 13 10 10 10 10 10 10 10 10 10 10 16 24 25 Average Carried 12 | . 2 3 7 12 15 15 14 14 9 10 9 9 9 9 10 10 9 10 9 9 10 18 21 Final Capacity 25 | 5 5 5 15 15 15 15 15 15 15 10 10 10 10 10 10 10 10 10 10 10 20 25 25 Final Carried 24 | . 4 3 15 15 15 15 15 13 10 10 9 10 10 10 10 10 10 10 10 9 16 24 22 Class Distribution -------------------- 38% | Scavenger-Mutant 18% | Hacker-Assassin 9% | Mutant 7% | Hacker-Sprinter 7% | Hacker-Mutant 5% | Hacker-Tank 3% | Scavenger-Tank 3% | Hacker-Skirmisher Dominant Class ---------------- Mutant | -10/Materials Scavenger-Mutant | -10/Subcaves Mutant | -8/Scraptown Hacker-Sprinter | -6/Factory Hacker-Sprinter | -6/Lower Caves Hacker-Sprinter | -6/Lower Caves Hacker-Sprinter | -6/Zion Hacker-Sprinter | -6/Deep Caves Scavenger-Mutant | -5/Proximity Caves Scavenger-Mutant | -5/Factory Scavenger-Mutant | -5/Extension Scavenger-Mutant | -5/Cetus Scavenger-Mutant | -5/Archives Scavenger-Mutant | -4/Factory Scavenger-Mutant | -4/Upper Caves Scavenger-Mutant | -4/Upper Caves Scavenger-Mutant | -4/Zhirov Scavenger-Mutant | -3/Proximity Caves Hacker-Assassin | -3/Research Hacker-Assassin | -2/Research Hacker-Assassin | -2/Testing Hacker-Assassin | -1/Access Scavenger-Mutant | -1/Command Resources | -11 -10 -10 -8 -6 -6 -6 -6 -6 -5 -5 -5 -5 -5 -4 -4 -4 -4 -3 -3 -2 -2 -1 -1 ----------- Run | Yrd Mat Sub Scr Fac Low Low Zio Dee Pro Fac Ext Cet Arc Fac Upp Upp Zhi Pro Res Res Tes Acc Com Matter Collected 7555 | 200 66 269 60 250 31 9 . 172 100 219 511 109 131 120 14 16 . 60 261 752 1023 382 2800 Remotely . | . . . . . . . . . . . . . . . . . . . . . . . . Salvage Created 5389 | . 22 53 . 151 . . . 70 199 628 8 . 69 . . 77 . . 475 652 1235 515 1235 Parts 241 | . 3 2 . 12 . . . 1 13 34 . . 8 . . 3 . . 23 15 63 15 49 Haulers Intercepted . | . . . . . . . . . . . . . . . . . . . . . . . . Recyclers Shooed . | . . . . . . . . . . . . . . . . . . . . . . . . Parts Field Recycled . | . . . . . . . . . . . . . . . . . . . . . . . . Retrieved Matter . | . . . . . . . . . . . . . . . . . . . . . . . . Parts Self-Destructed 67 | . . 3 . . 4 . . . 33 . . . . . 8 19 . . . . . . . Prevented 8 | . . . . . . . . . 8 . . . . . . . . . . . . . . Kills | -11 -10 -10 -8 -6 -6 -6 -6 -6 -5 -5 -5 -5 -5 -4 -4 -4 -4 -3 -3 -2 -2 -1 -1 ------- Run | Yrd Mat Sub Scr Fac Low Low Zio Dee Pro Fac Ext Cet Arc Fac Upp Upp Zhi Pro Res Res Tes Acc Com Combat Hostiles Destroyed 73 | . . 1 . 2 . . . 3 3 11 2 . . . . 1 . . 10 7 18 6 9 Melee 21 | . . . . 2 . . . . 3 8 . . . . . . . . 1 4 1 1 1 Guns 25 | . . 1 . . . . . 1 . 3 . . . . . 1 . . 1 1 10 4 3 Cannons 10 | . . . . . . . . . . . . . . . . . . . . . 5 1 4 AOE 15 | . . . . . . . . 2 . . 2 . . . . . . . 8 . 2 . 1 Classes Destroyed 13 | . 1 1 . 3 . . . 1 2 3 . . . . . . . . 1 . 1 . . Worker 6 | . 1 . . . . . . . . 1 . . . . . . . . 2 . 2 . . Builder 1 | . . . . . . . . . . . . . . . . . . . 1 . . . . Recycler 3 | . . . . . . . . . . 1 . . . . . . . . . . 2 . . Operator 4 | . . . . 1 . . . . . . . . 2 . . . . . . . 1 . . Watcher 1 | . . . . 1 . . . . . . . . . . . . . . . . . . . Swarmer 14 | . . . . . . . . . . 7 2 . . . . . . . . . 5 . . Grunt 18 | . . . . . . . . . 1 . . . . . . . . . 4 4 . 3 6 Sentry 8 | . . . . . . . . . . 2 . . . . . 1 . . . 2 . 3 . Hunter 10 | . . . . . . . . . 2 . . . . . . . . . 4 1 3 . . Programmer 16 | . . . . 2 . . . . . 2 . . . . . . . . 2 . 8 . 2 Striker 2 | . . . . . . . . . . . . . . . . . . . . . 2 . . Subdweller 1 | . . 1 . . . . . . . . . . . . . . . . . . . . . Z-Light 2 | . . . . . . . . 2 . . . . . . . . . . . . . . . Best Kill Streak 6 | . 1 1 . 1 . . . 3 2 4 2 . 2 . . 1 . . 6 3 5 3 6 Combat Bots Only 6 | . . 1 . 1 . . . 3 2 4 2 . . . . 1 . . 5 3 5 3 6 Max Kills in Single Turn 3 | . 1 1 . 1 . . . 2 1 1 1 . 1 . . 1 . . 3 1 3 1 1 Gunslinging . | . . . . . . . . . . . . . . . . . . . . . . . . Exploded 3 | . . . . . . . . 2 . . 1 . . . . . . . 3 . 2 . 1 Melee 1 | . . . . 1 . . . . 1 1 . . . . . . . . 1 1 1 1 1 Uniques/NPCs Destroyed 2 | . . . . . . . . 1 . . . . . . . . . . . . . . 1 Z-Imprinter (-6/Deep Caves) MAIN.C Shell (-1/Command) Combat | -11 -10 -10 -8 -6 -6 -6 -6 -6 -5 -5 -5 -5 -5 -4 -4 -4 -4 -3 -3 -2 -2 -1 -1 -------- Run | Yrd Mat Sub Scr Fac Low Low Zio Dee Pro Fac Ext Cet Arc Fac Upp Upp Zhi Pro Res Res Tes Acc Com Hostile Shots Fired 1338 | . . 10 . 24 7 . . 11 48 137 93 . . 4 2 . . . 113 96 330 46 417 Missed 356 | . . 2 . 13 4 . . 2 13 35 36 . . . 1 . . . 42 17 65 5 121 Hits 982 | . . 8 . 11 3 . . 9 35 102 57 . . 4 1 . . . 71 79 265 41 296 Melee 8 | . . . . . . . . . . . . . . . . . . . . . 8 . . Projectile 974 | . . 8 . 11 3 . . 9 35 102 57 . . 4 1 . . . 71 79 257 41 296 Critical Strikes 37 | . . . . . . . . . . 6 1 1 . . . . . . 2 2 15 . 10 Actively Blocked 1 | . . . . . . . . . . . . . . . . . . . . . . . 1 Part Disruptions 9 | . . . . . . . . . . . . . . . . . . . . . 1 . 8 Damage Taken 22040 | . 9 176 . 159 39 . . 447 554 1971 1514 213 10 134 24 . . . 1349 1806 6228 681 6726 Core 2081 | . . 49 . 57 . . . 115 152 603 281 . 10 25 . . . . 102 37 394 9 247 Absorbed by Shields 358 | . . . . . . . . . . . . 29 . . . . . . 329 . . . . Reduced by Siege Mode 1822 | . . . . . . . . . . . . . . . . . . . 24 196 664 108 830 Redirected to Shielding 67 | . . . . . . . . . . . . . . . . . . . . . . . 67 Ignored by Resistances 1765 | . . . . . . . . . . . . . . . . . . . 18 117 . 275 1355 Regen/Repaired (Parts) 684 | . . . . . . . . . . . . . . . . . . . . . 684 . . Core Remaining (%) 74 | 100 . . 80 . . . . . 61 . . . 10 . . . . 97 92 . 70 . 84 Volleys Fired 279 | . 1 7 . 4 . . . 12 . 14 8 . . 3 3 4 . . 16 33 85 15 74 Largest 4 | . 1 2 . 1 . . . 2 . 2 2 . . 2 2 2 . . 1 2 2 4 4 Hottest 360 | . 30 80 . 5 . . . 123 . 61 61 . . 115 115 115 . . 80 200 360 206 226 Shots Fired 479 | . 1 8 . 4 . . . 13 . 19 13 . . 4 6 5 . . 16 40 131 38 181 Gun 286 | . . 7 . . . . . 8 . 13 10 . . 4 6 5 . . 1 32 84 34 82 Cannon 146 | . . . . . . . . 1 . . . . . . . . . . . 8 43 4 90 Launcher 17 | . 1 1 . . . . . . . . 3 . . . . . . . 9 . 1 . 2 Special 30 | . . . . 4 . . . 4 . 6 . . . . . . . . 6 . 3 . 7 Kinetic 299 | . . 5 . . . . . 8 . 13 10 . . 3 3 4 . . . . 85 34 134 Thermal 127 | . . . . . . . . 1 . . . . . 1 3 1 . . 1 40 42 4 34 Explosive 19 | . 1 1 . . . . . 2 . . 3 . . . . . . . 9 . 1 . 2 Electromagnetic 6 | . . 2 . . . . . . . . . . . . . . . . . . . . 4 Robot Hit Streak 92 | . . 5 . 6 . . . 2 . 2 5 . . 1 1 4 . . 7 11 28 24 92 Robot Miss Streak 5 | . . 1 . . . . . 5 . 4 2 . . 3 3 1 . . 3 2 4 1 4 Penetration Max 1 | . . . . . . . . . . . . . . . . . . . . . 1 . . Secondary Targets 4 | . . . . . . . . . . . . . . . . . . . . . 2 2 . Max Gunslinging Chain 1 | . . . . . . . . . . . . . . . . . . . . . 1 1 . Shots Hit Robots 597 | . 3 7 . 13 . . . 4 12 39 13 . 5 1 2 3 . . 16 49 127 40 263 Core Hits 245 | . 1 2 . 3 . . . 7 4 14 4 . 1 1 2 1 . . 31 15 46 19 94 Critical Kills 1 | . . . . . . . . . . . . . . . . . . . . . . 1 . Critical Parts Destroyed . | . . . . . . . . . . . . . . . . . . . . . . . . Critical Strikes 26 | . . . . . . . . . . 5 . . . . . . . . . 4 8 1 8 Destroy 1 | . . . . . . . . . . . . . . . . . . . . . . 1 . Blast 2 | . . . . . . . . . . . . . . . . . . . . . . . 2 Impale 1 | . . . . . . . . . . 1 . . . . . . . . . . . . . Melee Attacks 435 | . 3 1 . 33 13 . . 10 15 74 8 . 5 4 . . . 1 11 23 60 14 160 Impact 1 | . . 1 . . . . . . . . . . . . . . . . . . . . . Slashing 414 | . . . . 33 13 . . 10 15 57 8 . 5 4 . . . 1 11 23 60 14 160 Piercing 17 | . . . . . . . . . . 17 . . . . . . . . . . . . . Sneak Attacks 21 | . 3 . . 1 . . . . 2 2 . . 5 . . . . . 1 2 3 2 . Combat Hostiles 7 | . . . . 1 . . . . 2 . . . . . . . . . . 2 . 2 . Follow-up Attacks 10 | . . . . . . . . . . 7 . . . . . . . . . . . . 3 Damage Inflicted 28598 | . 62 166 . 451 . . . 629 512 1433 543 . 440 25 71 90 . . 1976 1684 5427 1419 13670 Guns 7147 | . . 91 . . . . . 47 . 122 116 . . 25 71 90 . . 21 742 2137 1071 2614 Cannons 4536 | . . . . . . . . . . . . . . . . . . . . 210 1393 118 2815 Explosions 3427 | . 62 75 . . . . . 500 . . 232 . . . . . . . 1672 . 345 . 541 Melee 13406 | . . . . 451 . . . . 512 1311 195 . 440 . . . . . 283 732 1552 230 7700 Ramming . | . . . . . . . . . . . . . . . . . . . . . . . . Kinetic 8293 | . . 70 . . . . . 47 . 122 116 . . 25 55 54 . . . . 2199 1065 4540 Thermal 3331 | . . . . . . . . . . . . . . . 16 36 . . 21 952 1331 124 851 Explosive 3427 | . 62 75 . . . . . 500 . . 232 . . . . . . . 1672 . 345 . 541 Electromagnetic 59 | . . 21 . . . . . . . . . . . . . . . . . . . . 38 Impact . | . . . . . . . . . . . . . . . . . . . . . . . . Slashing 13181 | . . . . 451 . . . 82 512 1004 195 . 440 . . . . . 283 732 1552 230 7700 Piercing 307 | . . . . . . . . . . 307 . . . . . . . . . . . . . Highest Corruption 53 | . . . . . . . . . . 8 33 36 53 . . . . . 7 . 18 . 31 Average Corruption 16 | . . . . . . . . . . 7 21 35 48 . . . . . 1 . 12 . 19 Corruption Purged 10 | . . . . . . . . . . . . . . . . . . . . . . . 10 Corruption Blocked . | . . . . . . . . . . . . . . . . . . . . . . . . Effects 331 | . . . . . . . . . . 27 52 18 10 . . . . . 8 . 63 . 153 Message Errors 75 | . . . . . . . . . . 7 11 4 1 . . . . . 2 . 16 . 34 Matter Fused 72 | . . . . . . . . . . 10 10 7 3 . . . . . 2 . 8 . 32 Heat Flow Errors 37 | . . . . . . . . . . 3 4 1 1 . . . . . . . 12 . 16 Energy Discharges 45 | . . . . . . . . . . 3 7 2 . . . . . . 2 . 10 . 21 Parts Rejected 4 | . . . . . . . . . . 1 1 . . . . . . . . . . . 2 Parts Fused 5 | . . . . . . . . . . . 1 . 1 . . . . . . . 1 . 2 Data Loss (minor) 53 | . . . . . . . . . . 2 7 3 3 . . . . . 2 . 11 . 25 Data Loss (major) 11 | . . . . . . . . . . . 2 1 . . . . . . . . 2 . 6 Misfires 10 | . . . . . . . . . . . 3 . . . . . . . . . 2 . 5 Alerts 5 | . . . . . . . . . . . 3 . . . . . . . . . . . 2 Misdirections 6 | . . . . . . . . . . . 3 . 1 . . . . . . . 1 . 1 Weapon Failures 8 | . . . . . . . . . . 1 . . . . . . . . . . . . 7 Overload Shots 1 | . . . . . . . . . . . . . . . . . . . . . 1 . . Overflow Damage 1050 | . . . . 87 . . . 23 21 166 . . 166 . . . . . 82 . 96 . 409 Projectiles 109 | . . . . . . . . . . . . . . . . . . . . . 58 . 51 Explosions 129 | . . . . . . . . 23 . . . . . . . . . . 82 . . . 24 Melee 812 | . . . . 87 . . . . 21 166 . . 166 . . . . . . . 38 . 334 Knockbacks 17 | . . . . . . . . . . . . . . . . . . . . . 12 . 5 Impact . | . . . . . . . . . . . . . . . . . . . . . . . . Kinetic 14 | . . . . . . . . . . . . . . . . . . . . . 10 . 4 Secondary 3 | . . . . . . . . . . . . . . . . . . . . . 2 . 1 Self-Inflicted Damage 177 | . . 12 . . . . . . . . 39 . . . . . . . 62 . 23 . 41 Shots 8 | . . 1 . . . . . . . . 1 . . . . . . . 3 . 1 . 2 Rammed . | . . . . . . . . . . . . . . . . . . . . . . . . Targets Rammed . | . . . . . . . . . . . . . . . . . . . . . . . . Kicked . | . . . . . . . . . . . . . . . . . . . . . . . . Crushed . | . . . . . . . . . . . . . . . . . . . . . . . . Highest Temperature 455 | . . . . 6 . . . 51 . 211 245 262 . 36 54 27 . . 455 10 223 . 216 Average Temperature 86 | . . . . 3 . . . 15 . 89 100 138 . 17 23 15 . . 234 10 92 . 68 Received Heat Transfer 1918 | . 6 6 . 9 20 . . 84 . 126 234 . . 18 . . . . 74 288 . 135 918 Effects 1 | . . . . . . . . . . . . . . . . . . . 1 . . . . Shutdowns 1 | . . . . . . . . . . . . . . . . . . . 1 . . . . Siege Activations 23 | . . . . . . . . . . . . . . . . . . . 2 4 7 4 6 Total Turns 681 | . . . . . . . . . . . . . . . . . . . 13 108 227 67 266 Longest Duration 87 | . . . . . . . . . . . . . . . . . . . 7 47 66 22 87 Martial Activations . | . . . . . . . . . . . . . . . . . . . . . . . . Shielding Activations . | . . . . . . . . . . . . . . . . . . . . . . . . Robots Disrupted 1 | . . . . . . . . . . . . . . . . . . . . . . 1 . Combat Hostiles 1 | . . . . . . . . . . . . . . . . . . . . . . 1 . Robots Corrupted 1 | . . . . . . . . . . . . . . . . . . . . . 1 . . Combat Hostiles . | . . . . . . . . . . . . . . . . . . . . . . . . Parts Fried 2 | . . . . . . . . . . . . . . . . . . . . . 2 . . Impact Corruptions 1 | . . . . . . . . . . . . . . . . . . . . . 1 . . Robots Melted 2 | . . . . . . . . . . . . . . . . . . . . 2 . . . Combat Hostiles 2 | . . . . . . . . . . . . . . . . . . . . 2 . . . Parts Melted 8 | . . 2 . . . . . . . . . . . . . . . . . 5 1 . . Heat Transferred 3083 | . . . . . . . . . . . . . . . 37 37 . . 37 1184 1332 148 308 Parts Sabotaged . | . . . . . . . . . . . . . . . . . . . . . . . . Parts Stolen . | . . . . . . . . . . . . . . . . . . . . . . . . Parts Stripped . | . . . . . . . . . . . . . . . . . . . . . . . . Power Chain Reactions . | . . . . . . . . . . . . . . . . . . . . . . . . Alert | -11 -10 -10 -8 -6 -6 -6 -6 -6 -5 -5 -5 -5 -5 -4 -4 -4 -4 -3 -3 -2 -2 -1 -1 ------- Run | Yrd Mat Sub Scr Fac Low Low Zio Dee Pro Fac Ext Cet Arc Fac Upp Upp Zhi Pro Res Res Tes Acc Com Maximum Alert Level 3 | . . . . . . . . . . . 2 1 . 1 . . . . 3 2 1 . . Low Security (%) 78 | 100 100 . . 100 . . . . . 100 13 65 100 29 . . . . 49 . 93 100 100 Level 1 18 | . . . . . . . . . . . 68 34 . 70 . . . . 33 87 6 . . Level 2 3 | . . . . . . . . . . . 17 . . . . . . . 13 12 . . . Level 3 . | . . . . . . . . . . . . . . . . . . . 3 . . . . Level 4 . | . . . . . . . . . . . . . . . . . . . . . . . . Level 5 . | . . . . . . . . . . . . . . . . . . . . . . . . High Security . | . . . . . . . . . . . . . . . . . . . . . . . . Max Security . | . . . . . . . . . . . . . . . . . . . . . . . . Peak Influence 746 | . 35 . . 103 . . . . . 188 452 236 194 348 . . . . 746 422 242 137 187 Initial 321 | . . . . . . . . . . . 56 214 44 43 . . . . . 321 186 62 11 Average 140 | . 11 . . 53 . . . . . 64 319 180 144 220 . . . . 186 345 80 58 64 Influence Increases 6485 | . 70 . . 477 15 . . . 113 557 1275 156 210 467 180 280 . . 988 325 719 279 374 Destroy 0b10 Robot/C 2560 | . . . . 40 . . . . 100 220 520 80 80 160 80 120 . . 340 140 360 140 180 Destroy 0b10 Robot/NC 125 | . 5 . . 10 . . . . . 10 30 5 10 . . . . . 30 . 25 . . Destroy Leader 402 | . . . . 22 . . . . 10 50 46 . . 20 10 20 . . 74 40 50 40 20 Allied During Kill 1059 | . . . . . . . . . 3 . 320 50 90 180 90 140 . . 174 . . 12 . Successful Hack 168 | . . . . 68 . . . . . 32 5 . . . . . . . 27 4 11 21 . Disable Machine 615 | . 15 . . 15 . . . . . 45 210 15 30 45 . . . . 105 15 90 15 15 Destroy Structure 806 | . 5 . . 22 . . . . . 50 114 6 . 62 . . . . 238 21 123 21 144 Partial Spotted 120 | . 15 . . 90 . . . . . 15 . . . . . . . . . . . . . Lose Combat Pursuer 630 | . 30 . . 210 15 . . . . 135 30 . . . . . . . . 105 60 30 15 Influence Decreases 6475 | . 55 15 . 408 84 . . . 113 442 1007 429 196 301 374 225 151 . 415 566 946 366 382 Entered New Map 1135 | . . 8 . . 26 . . . . . 59 169 66 81 108 19 151 . . 252 146 43 7 Time Decay 3836 | . 55 7 . 291 58 . . . 113 338 458 170 110 190 246 206 . . 195 294 507 323 275 Lost Part 420 | . . . . 10 . . . . . 30 150 10 . . . . . . 10 20 90 . 100 Lost Ally 651 | . . . . 27 . . . . . 74 340 80 20 30 20 . . . 60 . . . . Purge Threat 433 | . . . . 80 . . . . . . . . . . . . . . 150 . 203 . . Squads Dispatched 33 | . . . . 13 . . . . . 3 . . . 1 . . . . 6 1 7 1 1 Investigation 15 | . . . . 9 . . . . . 2 . . . 1 . . . . 2 . 1 . . Extermination 13 | . . . . 3 . . . . . 1 . . . . . . . . 2 1 4 1 1 Reinforcement 5 | . . . . 1 . . . . . . . . . . . . . . 2 . 2 . . Assault . | . . . . . . . . . . . . . . . . . . . . . . . . Garrison . | . . . . . . . . . . . . . . . . . . . . . . . . Intercept . | . . . . . . . . . . . . . . . . . . . . . . . . Searches Triggered . | . . . . . . . . . . . . . . . . . . . . . . . . Construction Impeded 1 | . . . . . . . . . . . . . . . . . . . 1 . . . . Haulers Reinforced . | . . . . . . . . . . . . . . . . . . . . . . . . Active Scanning Responses . | . . . . . . . . . . . . . . . . . . . . . . . . Cargo Convoy Interrupts 1 | . . . . . . . . . . 1 . . . . . . . . . . . . . Stealth | -11 -10 -10 -8 -6 -6 -6 -6 -6 -5 -5 -5 -5 -5 -4 -4 -4 -4 -3 -3 -2 -2 -1 -1 --------- Run | Yrd Mat Sub Scr Fac Low Low Zio Dee Pro Fac Ext Cet Arc Fac Upp Upp Zhi Pro Res Res Tes Acc Com Distress Signals 17 | . . . . 1 . . . . . 3 1 1 . . . . . . 2 . 2 1 6 Communications Jammed . | . . . . . . . . . . . . . . . . . . . . . . . . Distress Signals . | . . . . . . . . . . . . . . . . . . . . . . . . Times Spotted 218 | . 4 3 . 19 8 . . 4 6 25 21 6 6 7 4 5 . . 33 16 23 8 20 Peak Tracking Total 10 | . 3 3 . 6 6 . . 3 2 5 5 5 1 4 3 4 . . 10 5 6 4 8 Tactical Retreats 26 | . 1 . . 6 2 . . . . 7 2 . . . . . . . . 3 2 1 2 Traps | -11 -10 -10 -8 -6 -6 -6 -6 -6 -5 -5 -5 -5 -5 -4 -4 -4 -4 -3 -3 -2 -2 -1 -1 ------- Run | Yrd Mat Sub Scr Fac Low Low Zio Dee Pro Fac Ext Cet Arc Fac Upp Upp Zhi Pro Res Res Tes Acc Com Traps Triggered 3 | . . . . . . . . . . . 1 . . . . . . . 1 . 1 . . Indirectly . | . . . . . . . . . . . . . . . . . . . . . . . . Trap Hack Attempts . | . . . . . . . . . . . . . . . . . . . . . . . . Triggered . | . . . . . . . . . . . . . . . . . . . . . . . . Disarmed . | . . . . . . . . . . . . . . . . . . . . . . . . Reprogrammed . | . . . . . . . . . . . . . . . . . . . . . . . . Reused . | . . . . . . . . . . . . . . . . . . . . . . . . Traps Extracted . | . . . . . . . . . . . . . . . . . . . . . . . . Installed . | . . . . . . . . . . . . . . . . . . . . . . . . Triggered . | . . . . . . . . . . . . . . . . . . . . . . . . Machines | -11 -10 -10 -8 -6 -6 -6 -6 -6 -5 -5 -5 -5 -5 -4 -4 -4 -4 -3 -3 -2 -2 -1 -1 ---------- Run | Yrd Mat Sub Scr Fac Low Low Zio Dee Pro Fac Ext Cet Arc Fac Upp Upp Zhi Pro Res Res Tes Acc Com Machines Disabled 48 | . 1 . . 1 2 . . 1 . 3 14 2 2 3 . . . 1 7 1 7 1 2 Max in Single Turn 1 | . 1 . . 1 1 . . 1 . 1 1 1 . 1 . . . 1 1 1 1 . 1 Garrison Access 5 | . . . . . . . . . . 2 . . . . . . . . 1 . 1 1 . Machines Repaired . | . . . . . . . . . . . . . . . . . . . . . . . . Machines Dismantled 13 | . . . . . . . . . . 1 11 1 . . . . . . . . . . . Machines Sabotaged . | . . . . . . . . . . . . . . . . . . . . . . . . Overloaded Fab Kills . | . . . . . . . . . . . . . . . . . . . . . . . . Hacking | -11 -10 -10 -8 -6 -6 -6 -6 -6 -5 -5 -5 -5 -5 -4 -4 -4 -4 -3 -3 -2 -2 -1 -1 --------- Run | Yrd Mat Sub Scr Fac Low Low Zio Dee Pro Fac Ext Cet Arc Fac Upp Upp Zhi Pro Res Res Tes Acc Com Machines Accessed 75 | . 3 . 5 20 . 3 1 . 1 7 3 2 . 1 . . 5 . 5 1 10 6 2 Terminals 37 | . 3 . . 9 . . . . 1 2 3 2 . . . . . . 3 1 6 5 2 Fabricators 8 | . . . . 5 . . . . . 1 . . . 1 . . . . . . 1 . . Repair Stations 2 | . . . . . . . . . . . . . . . . . . . . . 2 . . Recycling Units 9 | . . . . 6 . . . . . 2 . . . . . . . . 1 . . . . Scanalyzers . | . . . . . . . . . . . . . . . . . . . . . . . . Garrison Access 5 | . . . . . . . . . . 2 . . . . . . . . 1 . 1 1 . Total Hacks 204 | . 9 . 21 44 . 6 7 . 1 15 7 4 . 3 . . 18 . 15 10 27 12 5 Successful 137 | . 4 . 21 24 . 6 7 . 1 9 5 1 . . . . 18 . 9 5 18 7 2 Failed 67 | . 5 . . 20 . . . . . 6 2 3 . 3 . . . . 6 5 9 5 3 Catastrophic 8 | . . . . 2 . . . . . 2 1 1 . . . . . . 1 . . . 1 Database Lockouts . | . . . . . . . . . . . . . . . . . . . . . . . . Manual 88 | . 7 . . 32 . . 5 . . 8 2 1 . 1 . . . 1 7 10 10 2 2 Terminals 113 | . 9 . . 28 . . . . 1 7 7 4 . . . . . . 12 10 20 10 5 Fabricators 15 | . . . . 10 . . . . . 1 . . . 3 . . . . . . 1 . . Repair Stations 5 | . . . . . . . . . . . . . . . . . . . . . 5 . . Recycling Units 12 | . . . . 6 . . . . . 5 . . . . . . . . 1 . . . . Scanalyzers . | . . . . . . . . . . . . . . . . . . . . . . . . Garrison Access 7 | . . . . . . . . . . 2 . . . . . . . . 2 . 1 2 . Terminal Hacks 88 | . 1 . 21 7 . 6 7 . 1 1 4 1 . . . . 18 . 5 4 7 4 1 Record 32 | . . . 20 . . 4 . . 1 . . 1 . . . . 6 . . . . . . Part Schematic 11 | . . . . . . . 7 . . . . . . . . . 4 . . . . . . Robot Schematic 1 | . . . . . . . . . . . . . . . . . . . 1 . . . . Robot Analysis 5 | . . . . . . . . . . . . . . . . . 4 . . 1 . . . Prototype ID Bank 5 | . . . . 1 . . . . . . . . . . . . 4 . . . . . . Open Door 8 | . . . 1 . . 2 . . . . 2 . . . . . . . . . . 3 . Level Access Points 1 | . . . . . . . . . . . . . . . . . . . . . 1 . . Branch Access Points 3 | . . . . 1 . . . . . . . . . . . . . . 1 1 . . . Terminal Index 2 | . . . . . . . . . . . . . . . . . . . 1 1 . . . Fabricator Index 1 | . . . . . . . . . . 1 . . . . . . . . . . . . . Recycling Unit Index 1 | . . . . . . . . . . . . . . . . . . . . 1 . . . Alert Level 3 | . . . . 1 . . . . . . 1 . . . . . . . . . . 1 . Unreport Threat 6 | . . . . 2 . . . . . . . . . . . . . . 1 . 3 . . Locate Traps 1 | . . . . . . . . . . . 1 . . . . . . . . . . . . Recall Investigation 1 | . . . . 1 . . . . . . . . . . . . . . . . . . . Recall Extermination 1 | . . . . . . . . . . . . . . . . . . . 1 . . . . Registered Prototypes 1 | . . . . . . . . . . . . . . . . . . . . . 1 . . Zone Layout 4 | . 1 . . 1 . . . . . . . . . . . . . . . . 2 . . Disengage Seal 1 | . . . . . . . . . . . . . . . . . . . . . . . 1 Fabricator Hacks 2 | . . . . 1 . . . . . . . . . . . . . . . . 1 . . Network Status 2 | . . . . 1 . . . . . . . . . . . . . . . . 1 . . Repair Station Hacks 4 | . . . . . . . . . . . . . . . . . . . . . 4 . . Scan Component 2 | . . . . . . . . . . . . . . . . . . . . . 2 . . Repair 2 | . . . . . . . . . . . . . . . . . . . . . 2 . . Recycling Unit Hacks 1 | . . . . . . . . . . 1 . . . . . . . . . . . . . Report Inventory 1 | . . . . . . . . . . 1 . . . . . . . . . . . . . Scanalyzer . | . . . . . . . . . . . . . . . . . . . . . . . . Garrison Access Hacks 5 | . . . . . . . . . . 2 . . . . . . . . 1 . 1 1 . Seal Access 5 | . . . . . . . . . . 2 . . . . . . . . 1 . 1 1 . Unauthorized Hacks 37 | . 3 . . 16 . . . . . 5 1 . . . . . . . 3 1 5 2 1 Terminals 23 | . 3 . . 6 . . . . . 2 1 . . . . . . . 2 1 5 2 1 Assimilate 2 | . . . . 2 . . . . . . . . . . . . . . . . . . . Botnet 21 | . 3 . . 4 . . . . . 2 1 . . . . . . . 2 1 5 2 1 Fabricators 5 | . . . . 4 . . . . . 1 . . . . . . . . . . . . . Fabnet 5 | . . . . 4 . . . . . 1 . . . . . . . . . . . . . Repair Stations . | . . . . . . . . . . . . . . . . . . . . . . . . Recycling Units 9 | . . . . 6 . . . . . 2 . . . . . . . . 1 . . . . Fedlink 9 | . . . . 6 . . . . . 2 . . . . . . . . 1 . . . . Scanalyzers . | . . . . . . . . . . . . . . . . . . . . . . . . Garrison Access . | . . . . . . . . . . . . . . . . . . . . . . . . Data Cores Recovered . | . . . . . . . . . . . . . . . . . . . . . . . . Used . | . . . . . . . . . . . . . . . . . . . . . . . . Hacking Detections 39 | . 3 . . 12 . . . . . 3 1 1 . 1 . . . . 4 1 8 3 2 Full Trace Events 6 | . 1 . . 3 . . . . . . . . . 1 . . . . 1 . . . . Feedback Events 2 | . . . . . . . . . . . . . . . . . . . 2 . . . . Corruption 1 | . . . . . . . . . . . . . . . . . . . 1 . . . . Hackware Fried 1 | . . . . . . . . . . . . . . . . . . . 1 . . . . Feedback Blocked . | . . . . . . . . . . . . . . . . . . . . . . . . Robot Schematics Acquired 3 | . . . . . . . 2 . . . . . . . . . . . 1 . . . . Robots Built . | . . . . . . . . . . . . . . . . . . . . . . . . Authchips . | . . . . . . . . . . . . . . . . . . . . . . . . Time . | . . . . . . . . . . . . . . . . . . . . . . . . Total Robot Build Rating . | . . . . . . . . . . . . . . . . . . . . . . . . Part Schematics Acquired 25 | . . . . . . . 21 . . . . . . . . . 4 . . . . . . Parts Built . | . . . . . . . . . . . . . . . . . . . . . . . . Authchips . | . . . . . . . . . . . . . . . . . . . . . . . . Time . | . . . . . . . . . . . . . . . . . . . . . . . . Total Part Build Rating . | . . . . . . . . . . . . . . . . . . . . . . . . Parts Repaired 2 | . . . . . . . . . . . . . . . . . . . . . 2 . . Time 49 | . . . . . . . . . . . . . . . . . . . . . 49 . . Parts Recycled . | . . . . . . . . . . . . . . . . . . . . . . . . Recycled Matter . | . . . . . . . . . . . . . . . . . . . . . . . . Retrieved Matter . | . . . . . . . . . . . . . . . . . . . . . . . . Retrieved Components . | . . . . . . . . . . . . . . . . . . . . . . . . Parts Scanalyzed . | . . . . . . . . . . . . . . . . . . . . . . . . Part Schematics Acquired . | . . . . . . . . . . . . . . . . . . . . . . . . Parts Damaged . | . . . . . . . . . . . . . . . . . . . . . . . . Bothacking | -11 -10 -10 -8 -6 -6 -6 -6 -6 -5 -5 -5 -5 -5 -4 -4 -4 -4 -3 -3 -2 -2 -1 -1 ------------ Run | Yrd Mat Sub Scr Fac Low Low Zio Dee Pro Fac Ext Cet Arc Fac Upp Upp Zhi Pro Res Res Tes Acc Com Used RIF Installer . | . . . . . . . . . . . . . . . . . . . . . . . . Robots Hacked 25 | . 2 . . 4 . . . . 3 7 2 . . 1 . . . . 3 . 2 . 1 Non-combat 2 | . 2 . . . . . . . . . . . . . . . . . . . . . . Combat 10 | . . . . . . . . . 3 4 2 . . 1 . . . . . . . . . Robot Hacks Applied 3 | . 3 . . . . . . . . . . . . . . . . . . . . . . parse_system 2 | . 2 . . . . . . . . . . . . . . . . . . . . . . find_recycling 1 | . 1 . . . . . . . . . . . . . . . . . . . . . . Manual 13 | . . . . 4 . . . . . 3 . . . . . . . . 3 . 2 . 1 Relay Couplers Released . | . . . . . . . . . . . . . . . . . . . . . . . . Fabnet Peak Effective % 12 | . . . . . . . . . 12 12 12 12 12 7 7 7 7 1 1 . . . . Autooverrided 10 | . . . . . . . . . 3 4 2 . . 1 . . . . . . . . . Robots Rewired 11 | . . . . 1 . . . . . . 10 . . . . . . . . . . . . Allies Hacked 1 | . . . . . . . . . . 1 . . . . . . . . . . . . . Hacks Repelled . | . . . . . . . . . . . . . . . . . . . . . . . . Allies | -11 -10 -10 -8 -6 -6 -6 -6 -6 -5 -5 -5 -5 -5 -4 -4 -4 -4 -3 -3 -2 -2 -1 -1 -------- Run | Yrd Mat Sub Scr Fac Low Low Zio Dee Pro Fac Ext Cet Arc Fac Upp Upp Zhi Pro Res Res Tes Acc Com Total Allies 55 | . . . . 3 . . 2 . 3 4 31 5 . 1 . . . . . . . 3 3 Largest Group 11 | . . . . 2 . . 2 2 2 1 11 10 9 7 5 4 4 4 4 . . 3 3 Highest-Rated Group 723 | . . . . 55 . . 192 192 58 29 421 723 723 528 480 384 384 384 384 . . 379 376 Highest-Rated Ally 159 | . . . . 29 . . 96 96 29 29 159 159 153 96 96 96 96 96 96 . . 135 132 Total Orders 2 | . . . . . . . . . . . . . 2 . . . . . . . . . . ROAM 1 | . . . . . . . . . . . . . 1 . . . . . . . . . . FOLLOW 1 | . . . . . . . . . . . . . 1 . . . . . . . . . . Ally Attacks 493 | . . . . 4 . . . 17 15 10 231 47 32 45 14 21 . . 47 . . 7 3 Total Damage 13189 | . . . . 56 . . . 227 183 124 4412 1127 1146 2178 894 774 . . 1739 . . 269 60 Kills 73 | . . . . . . . . . 2 . 32 7 4 9 4 5 . . 9 . . 1 . Allies Corrupted 3 | . . . . . . . . . . 1 1 . . . . . . . 1 . . . . Allies Melted . | . . . . . . . . . . . . . . . . . . . . . . . . Intel | -11 -10 -10 -8 -6 -6 -6 -6 -6 -5 -5 -5 -5 -5 -4 -4 -4 -4 -3 -3 -2 -2 -1 -1 ------- Run | Yrd Mat Sub Scr Fac Low Low Zio Dee Pro Fac Ext Cet Arc Fac Upp Upp Zhi Pro Res Res Tes Acc Com Active Infowar (turns) 11723 | . 132 258 155 523 203 51 288 258 564 974 1144 347 222 399 535 430 246 252 879 657 2031 730 445 Optics 13 | . . . 13 . . . . . . . . . . . . . . . . . . . . Sensors 5300 | . . . . 339 76 . . 145 . 343 57 . . . . . . . 679 657 2023 730 251 IFF 1952 | . . . . 122 . . . . . . . . . 164 535 430 246 252 203 . . . . Structural 10995 | . 132 258 142 62 112 51 288 113 564 974 1144 347 222 399 535 430 246 252 875 657 2018 730 444 Cloaking 1 | . . . . . . . . . . . . . . 1 . . . . . . . . . ECM 92 | . . . . . 15 . . . . 50 26 . . . . . . . . . 1 . . Robot Analysis Total 5 | . . . . . . . . . . . . . . . . . 4 . . 1 . . . Derelict Logs Recovered 12 | . . . 3 . 2 2 1 . 2 . . . . . 1 1 . . . . . . . Drone Launches . | . . . . . . . . . . . . . . . . . . . . . . . . Drone Recoveries . | . . . . . . . . . . . . . . . . . . . . . . . . Exploration | -11 -10 -10 -8 -6 -6 -6 -6 -6 -5 -5 -5 -5 -5 -4 -4 -4 -4 -3 -3 -2 -2 -1 -1 ------------- Run | Yrd Mat Sub Scr Fac Low Low Zio Dee Pro Fac Ext Cet Arc Fac Upp Upp Zhi Pro Res Res Tes Acc Com Turns Passed 16152 | 9 141 258 1049 730 203 51 288 287 628 1112 1144 347 222 399 535 430 246 252 879 657 2031 730 3524 Spaces Moved 12686 | 18 197 246 1259 1676 568 182 884 609 429 926 617 143 113 215 327 262 145 148 444 284 926 319 1749 Core 119 | 18 61 . 2 . . . . . . . 38 . . . . . . . . . . . . Treads 5202 | . . . . . . . . . . . 163 107 113 215 327 262 145 148 444 284 926 319 1749 Legs 1080 | . . . . . . . . 3 422 332 287 36 . . . . . . . . . . . Wheels 522 | . . 152 281 . . . . . . 89 . . . . . . . . . . . . . Hover 1840 | . 136 94 976 . . . . . . 505 129 . . . . . . . . . . . . Flight 3923 | . . . . 1676 568 182 884 606 7 . . . . . . . . . . . . . . Fastest Speed 20 | 50 50 60 50 27 27 27 27 20 27 48 52 120 160 160 160 160 160 160 160 150 145 162 155 Average Speed 100 | 50 56 89 81 33 27 27 27 26 118 80 127 149 160 160 160 160 160 160 160 156 155 168 163 Slowest Speed 450 | 50 60 180 116 49 27 27 27 190 120 120 450 160 160 166 160 160 160 160 160 160 166 170 260 Overloaded Moves . | . . . . . . . . . . . . . . . . . . . . . . . . Propulsion Burnouts . | . . . . . . . . . . . . . . . . . . . . . . . . Robots Hopped 12 | . . . . 12 . . . . . . . . . . . . . . . . . . . Potential Cave-ins 2 | . . . . . . . . . . . . . . . . . . . . . . . 2 Cave-ins Triggered . | . . . . . . . . . . . . . . . . . . . . . . . . Exploration Rate (%) 47 | 4 45 19 89 53 57 39 85 80 61 26 77 68 77 6 52 49 61 35 20 7 69 11 51 Regions Visited 23 Branch Regions 16 Pre-discovered Areas 8 | . . . 1 1 . . . . 2 . . . . . . 1 3 . . . . . . Known Exits Taken 14 | . . . . 1 1 1 1 1 1 1 1 . 1 . . . . 1 1 1 1 1 . Unknown Exits Taken 9 | 1 1 1 1 . . . . . . . . 1 . 1 1 1 1 . . . . . . Scrap Searched 21 | . . 7 2 . 2 3 2 . 1 . . . . . 1 1 . 2 . . . . . Spaces Dug 105 | . . . . 22 11 . . 4 . 26 . . . 3 . . . . 5 2 12 5 15 Terrain Destroyed 433 | . 5 3 . 22 11 . . 18 . 26 63 . . 5 3 . . . 163 8 42 8 56 Melee 102 | . . . . 22 11 . . 4 . 26 . . . 3 . . . . 5 1 12 5 13 Projectile 43 | . . . . . . . . 1 . . . . . 2 3 . . . . 7 14 2 14 AOE 285 | . 5 3 . . . . . 13 . . 63 . . . . . . . 158 . 14 . 29 Terrain Rammed . | . . . . . . . . . . . . . . . . . . . . . . . . Walls Destroyed . | . . . . . . . . . . . . . . . . . . . . . . . . Machines Disabled . | . . . . . . . . . . . . . . . . . . . . . . . . Actions | -11 -10 -10 -8 -6 -6 -6 -6 -6 -5 -5 -5 -5 -5 -4 -4 -4 -4 -3 -3 -2 -2 -1 -1 --------- Run | Yrd Mat Sub Scr Fac Low Low Zio Dee Pro Fac Ext Cet Arc Fac Upp Upp Zhi Pro Res Res Tes Acc Com Total 14959 | 17 221 274 1288 1782 595 184 933 703 526 1154 858 266 149 259 333 268 160 163 581 423 1297 457 2068 Wait 878 | . 10 7 1 37 12 1 41 49 68 99 30 96 11 16 4 3 1 5 76 59 146 83 23 Move 12639 | 17 196 245 1258 1652 567 181 883 608 428 925 616 142 112 214 326 261 144 147 443 283 925 318 1748 Hop 11 | . . . . 11 . . . . . . . . . . . . . . . . . . . Pick Up 83 | . 3 3 12 12 . 1 2 1 2 7 . 2 4 1 . . 2 . 2 1 12 8 8 Fast Attach 167 | . 5 4 6 8 . . 1 6 4 11 18 5 4 8 . . 6 3 10 10 28 6 24 Attach 54 | . 1 1 . 7 . . . 3 4 7 2 . 1 . . . . . 4 3 4 2 15 Detach 37 | . 2 1 1 . . . 1 1 1 . 1 . 1 1 . . . 2 4 1 5 3 12 Swap 85 | . . 1 2 7 3 . 2 7 1 7 6 4 3 3 . . . 1 6 2 13 5 12 Drop 130 | . . 4 8 10 . 1 3 6 2 8 2 8 8 9 . . 7 4 9 8 19 3 11 Fire 279 | . 1 7 . 4 . . . 12 . 14 8 . . 3 3 4 . . 16 33 85 15 74 Melee 409 | . 3 1 . 33 13 . . 10 15 67 8 . 5 4 . . . 1 11 23 60 14 141 Ram . | . . . . . . . . . . . . . . . . . . . . . . . . Kick . | . . . . . . . . . . . . . . . . . . . . . . . . Crush . | . . . . . . . . . . . . . . . . . . . . . . . . Escape Stasis . | . . . . . . . . . . . . . . . . . . . . . . . . Rewire 82 | . . . . 1 . . . . . . 81 . . . . . . . . . . . . Trap . | . . . . . . . . . . . . . . . . . . . . . . . . Miscellaneous 105 | . . . . . . . . . 1 9 86 9 . . . . . . . . . . . Route ------- -11/Scrapyard -10/Materials (discovered 2 exits: [*Min] / [*Sub]) -10/Subcaves -8/Scraptown (discovered 2 exits: *Fac x2) -6/Factory (discovered 4 exits: *Fac x2 / *Low x2) -6/Lower Caves -6/Lower Caves -6/Zion (discovered 2 exits: *Dee / *Pro) -6/Deep Caves -5/Proximity Caves -5/Factory (discovered 3 exits: Fac / Upp / *Ext) -5/Extension (discovered 2 exits: *Fac / *Cet) -5/Cetus -5/Archives (discovered 2 exits: *Fac / [*Hub]) -4/Factory (discovered 2 exits: *Res / [*Upp]) -4/Upper Caves -4/Upper Caves -4/Zhirov -3/Proximity Caves -3/Research (discovered 3 exits: *Res / Qua x2) -2/Research (discovered 2 exits: *Tes x2) -2/Testing -1/Access (discovered 2 exits: Sur / *Com) -1/Command (discovered 2 exits: *Sur x2) To Epsilon Eridani History --------- Turn | Location | Event 4 | -11/Scrapyard | Discovered new exit (range 14) 10 | -11/Scrapyard | Entered Materials 11 | -10/Materials | Met a group of wandering Federalists 90 | -10/Materials | Discovered new exit (range 7) 144 | -10/Materials | Discovered new exit (range 11) 151 | -10/Materials | Entered Subcaves 152 | -10/Subcaves | Continued accompanying wandering Federalists (6) 198 | -10/Subcaves | Disturbed a concealed Subdweller 244 | -10/Subcaves | Lost 3 allies 409 | -10/Subcaves | Entered Scraptown 523 | -8/Scraptown | Build established: Scavenger-Mutant 557 | -8/Scraptown | Scanned Subdweller tech in exchange for log data 559 | -8/Scraptown | Learned Factory stockpile data 560 | -8/Scraptown | Learned location of Armory (-4) 561 | -8/Scraptown | Learned Research terminal intel 575 | -8/Scraptown | Discovered new exit (range 11) 805 | -8/Scraptown | Visited UFD Registry 805 | -8/Scraptown | Registered with UFD as "Matrixdome" 813 | -8/Scraptown | Visited CR-KLE's Repair Center 822 | -8/Scraptown | Visited TADAMA 828 | -8/Scraptown | Visited Comm Corps 849 | -8/Scraptown | Visited Spacefarers 852 | -8/Scraptown | Build established: Mutant 879 | -8/Scraptown | Visited Red Mages 902 | -8/Scraptown | Visited Cyclists 908 | -8/Scraptown | Entered Cyclist Reading Room 923 | -8/Scraptown | Visited Awakened 985 | -8/Scraptown | Visited Derelict Rescue Squad 988 | -8/Scraptown | Found DRS Beacon 1000 | -8/Scraptown | Visited Abandonware Association 1005 | -8/Scraptown | Learned abandonware demo "SHUTEYE.EXE" 1018 | -8/Scraptown | Visited Science Guys 1027 | -8/Scraptown | Visited Sword Containment 1145 | -8/Scraptown | Visited Supply Room 1183 | -8/Scraptown | Visited Science Testing Area 1196 | -8/Scraptown | Visited Chapter 10 1228 | -8/Scraptown | Visited Junk Repository 1264 | -8/Scraptown | Visited Curators Association 1357 | -8/Scraptown | Received an X-ray algorithm 1391 | -8/Scraptown | Met Optimus 1391 | -8/Scraptown | Accepted into 0bPrime 1455 | -8/Scraptown | Discovered new exit (range 3) 1458 | -8/Scraptown | Entered Factory 1458 | -6/Factory | Evolved 8 slots: Propulsion x4, Utility x4 1728 | -6/Factory | Loaded intel: 8 recycling unit locations 1738 | -6/Factory | Identified exit to Lower Caves 1764 | -6/Factory | Discovered new exit (range 8) 1773 | -6/Factory | Identified exit to Factory 1865 | -6/Factory | Learned location of Protoforge (-2) 1896 | -6/Factory | Discovered exit to Factory (range 12) 2056 | -6/Factory | Build established: Hacker-Sprinter 2188 | -6/Factory | Entered Lower Caves 2190 | -6/Lower Caves | Learned location of 2 exits from Factory 2192 | -6/Lower Caves | Identified exit to Lower Caves 2267 | -6/Lower Caves | Attracted the attention of an 0b10 checkpoint 2333 | -6/Lower Caves | Attacked by a delusional Derelict stockpiling Unaware 2368 | -6/Lower Caves | Attacked by a delusional Derelict stockpiling parts 2391 | -6/Lower Caves | Entered another Lower Caves area 2394 | -6/Lower Caves | Entered an active Warlord outpost 2396 | -6/Lower Caves | Learned Research emergency access door positions 2396 | -6/Lower Caves | Learned Factory terminal intel 2408 | -6/Lower Caves | Encountered a Warlord checkpoint 2428 | -6/Lower Caves | Learned Factory trap positions 2431 | -6/Lower Caves | Learned 12 Factory zone layouts 2432 | -6/Lower Caves | Discovered new exit (range 11) 2442 | -6/Lower Caves | Identified exit to Zion 2442 | -6/Lower Caves | Entered Zion 2455 | -6/Zion | Acquired unknown access codes intercepted by a Zionite 2460 | -6/Zion | Found CR-A16's Pointy Stick 2469 | -6/Zion | Discovered new exit (range 10) 2471 | -6/Zion | Identified exit to Proximity Caves 2531 | -6/Zion | Learned Factory emergency access door positions 2543 | -6/Zion | Learned location of 1 exit from Factory 2573 | -6/Zion | Given A8's code to call for help 2609 | -6/Zion | Found Prototype Special Weapon 2609 | -6/Zion | Identified RU-N14's Throwing Claymores 2672 | -6/Zion | Turned away by Imprinter 2693 | -6/Zion | Opened final containment barrier to the Deep Caves 2700 | -6/Zion | Enhanced Grunt warped into view, answering call for help 2703 | -6/Zion | Enhanced Grunt warped into view, answering call for help 2717 | -6/Zion | Discovered new exit (range 3) 2717 | -6/Zion | Saw the warning signs outside the Deep Caves entrance 2718 | -6/Zion | Identified exit to Deep Caves 2730 | -6/Zion | Entered Deep Caves 2730 | -6/Deep Caves | Accompanied by 2 allies 2785 | -6/Deep Caves | Attacked by Z-Imprinter 2812 | -6/Deep Caves | Destroyed Z-Imprinter 2872 | -6/Deep Caves | Z-Facility disabled 2933 | -6/Deep Caves | Discovered new exit (range 13) 2959 | -6/Deep Caves | Spotted AG-53414 3016 | -6/Deep Caves | Identified exit to Proximity Caves 3017 | -6/Deep Caves | Entered Proximity Caves 3019 | -5/Proximity Caves | Activated DRS Beacon 3034 | -5/Proximity Caves | Lost 4 parts (1p2n1u) 3160 | -5/Proximity Caves | Lost 3 parts (1p2n) 3438 | -5/Proximity Caves | Learned location of Warlord (-5) 3532 | -5/Proximity Caves | Build established: Scavenger-Mutant 3627 | -5/Proximity Caves | Discovered exit to Factory (range 7) 3645 | -5/Proximity Caves | Entered Factory 3645 | -5/Factory | Evolved 2 slots: Utility x2 3646 | -5/Factory | Identified exit to Factory 3646 | -5/Factory | Identified exit to Upper Caves 3646 | -5/Factory | Identified exit to Extension 3648 | -5/Factory | Loaded intel: 109 trap records 3650 | -5/Factory | Loaded intel: 28 terminal locations 3934 | -5/Factory | Lost 5 parts (1p2n2u) 4260 | -5/Factory | Core integrity fell below 50% 4372 | -5/Factory | Loaded intel: 8 recycling unit locations 4565 | -5/Factory | Cargo convoy interrupted 4566 | -5/Factory | Local machine network offline 4722 | -5/Factory | Build established: Scavenger-Ninja 4757 | -5/Factory | Entered Extension 4761 | -5/Extension | Disrupted transfer network 4785 | -5/Extension | Rescued a captive Derelict 4805 | -5/Extension | Rescued a captive Derelict 4806 | -5/Extension | Rescued a captive Derelict 4809 | -5/Extension | Local machine network offline 4876 | -5/Extension | Rescued a captive Derelict 4921 | -5/Extension | Rescued a captive Derelict 4922 | -5/Extension | Rescued a captive Derelict 4981 | -5/Extension | Rescued a captive Derelict 4982 | -5/Extension | Rescued a captive Derelict 5053 | -5/Extension | Rescued a captive Derelict 5099 | -5/Extension | Rescued a captive Derelict 5100 | -5/Extension | Rescued a captive Derelict 5143 | -5/Extension | Lost 4 allies 5173 | -5/Extension | System corruption reached 10% 5196 | -5/Extension | Rescued a captive Derelict 5198 | -5/Extension | Rescued a captive Derelict 5217 | -5/Extension | Spotted B-75 Beast 5226 | -5/Extension | Spotted B-75 Beast 5248 | -5/Extension | Allies destroyed B-75 Beast 5261 | -5/Extension | Core integrity fell below 20% 5275 | -5/Extension | Allies destroyed B-75 Beast 5296 | -5/Extension | Lost 12 parts (1p7n2u2w) 5313 | -5/Extension | System corruption reached 30% 5424 | -5/Extension | Rescued a captive Derelict 5425 | -5/Extension | Rescued a captive Derelict 5544 | -5/Extension | Rescued a captive Derelict 5608 | -5/Extension | Build established: Scavenger-Mutant 5646 | -5/Extension | Lost 6 allies 5791 | -5/Extension | Rescued A7 5824 | -5/Extension | Rescued a captive Derelict 5825 | -5/Extension | Rescued a captive Derelict 5857 | -5/Extension | Discovered exit to Factory (range 10) 5858 | -5/Extension | Discovered new exit (range 6) 5885 | -5/Extension | Identified exit to Cetus 5901 | -5/Extension | Entered Cetus 5901 | -5/Cetus | Accompanied by 10 allies (A7) 5906 | -5/Cetus | Acquired a Cetus Manufacturing Module code from A7 5923 | -5/Cetus | Spotted Cetus Guard 5924 | -5/Cetus | Spotted Cetus Guard 5929 | -5/Cetus | Spotted Cetus Guard 5939 | -5/Cetus | Allies destroyed Cetus Guard 5941 | -5/Cetus | Allies destroyed Cetus Guard 5942 | -5/Cetus | Spotted Cetus Guard 5953 | -5/Cetus | Allies destroyed Cetus Guard 5965 | -5/Cetus | Allies destroyed Cetus Guard 5983 | -5/Cetus | Lost 6 allies 6052 | -5/Cetus | Started Cetus Manufacturing Module 6077 | -5/Cetus | Manufactured an Enhanced Grunt 6080 | -5/Cetus | Escorted A7 to Cetus Mainframe 6102 | -5/Cetus | Manufactured an Enhanced Grunt 6127 | -5/Cetus | Manufactured an Enhanced Grunt 6152 | -5/Cetus | Manufactured an Enhanced Grunt 6177 | -5/Cetus | Manufactured an Enhanced Grunt 6210 | -5/Cetus | Discovered new exit (range 16) 6248 | -5/Cetus | Entered Archives 6248 | -5/Archives | Accompanied by 9 allies (A7) 6253 | -5/Archives | Received a hacking code to weaken MAIN.C 6342 | -5/Archives | Discovered exit to Factory (range 14) 6379 | -5/Archives | Discovered new exit (range 15) 6470 | -5/Archives | Entered Factory 6470 | -4/Factory | Accompanied by 7 allies 6470 | -4/Factory | Evolved 2 slots: Utility x2 6471 | -4/Factory | Identified exit to Research 6604 | -4/Factory | Local machine network offline 6635 | -4/Factory | Lost 3 allies 6766 | -4/Factory | Discovered new exit (range 5) 6869 | -4/Factory | Entered Upper Caves 6869 | -4/Upper Caves | Accompanied by 5 allies 6924 | -4/Upper Caves | Learned 8 Research zone layouts 6954 | -4/Upper Caves | Attracted the attention of an 0b10 checkpoint 7390 | -4/Upper Caves | Discovered new exit (range 5) 7404 | -4/Upper Caves | Entered another Upper Caves area 7404 | -4/Upper Caves | Accompanied by 4 allies 7474 | -4/Upper Caves | Attracted the attention of an 0b10 checkpoint 7694 | -4/Upper Caves | Learned location of Testing (-2) 7816 | -4/Upper Caves | Discovered new exit (range 11) 7834 | -4/Upper Caves | Entered Zhirov 7834 | -4/Zhirov | Accompanied by 4 allies 7834 | -4/Zhirov | Discovered new exit (range 3) 7863 | -4/Zhirov | Met Zhirov 7892 | -4/Zhirov | Learned location of Quarantine (-3) 7892 | -4/Zhirov | Learned location of Command (-1) 7919 | -4/Zhirov | Zhirov requested help retrieving the SGEMP Prototype 7949 | -4/Zhirov | Found Alien Artifact 7949 | -4/Zhirov | Identified Integrated Dissipator 7949 | -4/Zhirov | Installed Integrated Dissipator, increased core heat dissipation (+20) 8019 | -4/Zhirov | Found Alien Artifact 8080 | -4/Zhirov | Entered Proximity Caves 8080 | -3/Proximity Caves | Accompanied by 4 allies 8261 | -3/Proximity Caves | Acquired the password to a Derelict Tinkerer's latest research 8293 | -3/Proximity Caves | Found Prototype Special Weapon 8293 | -3/Proximity Caves | Identified Molecular Deconstructor 8320 | -3/Proximity Caves | Discovered exit to Research (range 5) 8332 | -3/Proximity Caves | Entered Research 8332 | -3/Research | Accompanied by 4 allies 8332 | -3/Research | Evolved 2 slots: Power x1, Utility x1 8333 | -3/Research | Identified exit to Research 8333 | -3/Research | Identified exit to Quarantine 8335 | -3/Research | Loaded intel: 23 terminal locations 8394 | -3/Research | Adv. System Shield fried by hacking feedback 8874 | -3/Research | Build established: Hacker-Assassin 9002 | -3/Research | Loaded intel: 5 recycling unit locations 9089 | -3/Research | Lost 3 allies 9211 | -3/Research | Entered another Research area 9211 | -2/Research | Evolved 2 slots: Utility x2 9544 | -2/Research | Identified exit to Testing 9707 | -2/Research | Found Prototype Processor 9707 | -2/Research | Identified Exp. Core Analyzer 9868 | -2/Research | Entered Testing 9931 | -2/Testing | Build established: Hacker-Skirmisher 9986 | -2/Testing | Lost 5 parts (1p2n2u) 9993 | -2/Testing | Found Prototype Hackware 9993 | -2/Testing | Identified System Mapper 10145 | -2/Testing | Repaired Centrium Heavy Treads 10278 | -2/Testing | Identified exit to Access 10291 | -2/Testing | Build established: Wizard-Assassin 10370 | -2/Testing | Spotted Striker 10378 | -2/Testing | Spotted Striker 10431 | -2/Testing | Destroyed Striker 10440 | -2/Testing | Destroyed Striker 10490 | -2/Testing | Spotted Alpha 7 10580 | -2/Testing | Found Prototype Ballistic Gun 10580 | -2/Testing | Identified Multirail 10594 | -2/Testing | Stole the SGEMP Prototype 10740 | -2/Testing | Repaired Structural Scanner 10853 | -2/Testing | System corruption reached 10% 11224 | -2/Testing | Build established: Hacker-Assassin 11285 | -2/Testing | Found Prototype Device 11285 | -2/Testing | Identified Exp. ECM Suite 11668 | -2/Testing | Found Portable AFG 11899 | -2/Testing | Entered Access 11899 | -1/Access | Evolved 2 slots: Weapon x2 11900 | -1/Access | Delivered the SGEMP Prototype to Zhirov 11900 | -1/Access | Zhirov transferred Access data 11901 | -1/Access | Loaded intel: 120 machine locations 11901 | -1/Access | Loaded intel: 88 trap records 11901 | -1/Access | Identified exit to Surface 11901 | -1/Access | Discovered exit to Surface (range 61) 11901 | -1/Access | Identified exit to Command 11901 | -1/Access | Discovered exit to Command (range 146) 11996 | -1/Access | Zhirov warped through subspace 12629 | -1/Access | Entered Command 12727 | -1/Command | Disengaged cave seal 12727 | -1/Command | Wild derelicts emerged from the dark tunnel 12936 | -1/Command | Lost 3 parts (1p2u) 13179 | -1/Command | Build established: Hacker-Tank 13235 | -1/Command | Spotted Combat Programmer 13332 | -1/Command | Met MAIN.C 13332 | -1/Command | Hacked MAIN.C using A7's code 13352 | -1/Command | 0b10 Conduit disabled 13379 | -1/Command | Lost 3 parts (2u1w) 13394 | -1/Command | System corruption reached 10% 13500 | -1/Command | Lost 4 parts (1n2u1w) 13602 | -1/Command | System corruption reached 30% 13632 | -1/Command | Lost 3 parts (1p1u1w) 13632 | -1/Command | Destroyed MAIN.C Shell 13635 | -1/Command | MAIN.C activated Command garrisons 13641 | -1/Command | Zhirov used SGEMP to disable MAIN.C 13841 | -1/Command | Identified Transdimensional Reconstructor 13841 | -1/Command | Discovered exit to Surface (range 37) 13841 | -1/Command | Discovered exit to Surface (range 95) 13841 | -1/Command | Extracted map data and part IDs from MAIN.C's data core 13845 | -1/Command | Found Zero-point Reactor 13854 | -1/Command | Found Exp. Targeting Computer 13857 | -1/Command | Found Omega Cannon 13860 | -1/Command | Found Exp. Powered Armor 13864 | -1/Command | Found Thermal Barrier 14169 | -1/Command | Build established: Scavenger-Mutant 16105 | -1/Command | Build established: Scavenger-Tank 16153 | *** | Escaped! Last Messages --------------- misfires. 15904_ System corrupted: Component data lost. 15925_ System corrupted: Heat flow error (+253). 15943_ System corrupted: Component data lost. 15978_ System corrupted: Matter fused (-8). 16001_ System corrupted: Matter fused (-7). 16019_ System corrupted: FCS attempts to trigger Hvy. Disruptor Cannon. 16019_ System corrupted: Hvy. Disruptor Cannon misfires. Companion Sword: "I'm starting to think you like your Imp. Remote Datajack more than me." 16034_ System corrupted: Component data lost. 16054_ System corrupted: Energy discharge (-186). 16069_ 8#H1QGBZXFU0%=A W=96G6AWBYT5HT 16086_ NFH&XYITILQMKCIQWRV4AAQCXC&SWA%CV 16103_ HJXNUCLS#C16QA&CL,MEOJN 16125_ System corrupted: Component data lost. 16141_ System corrupted: Matter fused (-6). Map ----- +----------------------------------------------------+ | ??????????# ###### ###????????? | | ??????????# "" + + ""#????????? | | ??????????# """" ###### ""#????????? | | ??????????# """" #????# ""#????????? | | ??????????# "" #????# T#????????? | | ??????????# ###### ""#????????? | | ??????????# + + ""#????????? | | ########### ""T"" ###### ""#????????? | | # # """"" #????# ! ###????????? | | # # #????# #??????????? | | # # #????# #??????????? | | # ######+##############/#########????????? | | # "" + #????????? | | # """" ### ] #????????? | | # """" #?# #????????? | | # "" #?# !== #????????? | | # #?#[ != #????????? | | # #?# == ########## | | # "" #?# / | | # """" ### ####### | | #! """" ## #?????# #############""" | | # "" + #?????###### # ####""" | | + ## ##+#####?###### # #][] | | # ## # !!#?# # "" #[]] [ | | ###+######## # ! #?# + """ #!!! | | + #?# @ ## # "T #!!!**= | | # ### ## # """ ####### | | =# ####### # "" #?????? | | # ##?????# # #?????? | | ##+############ + #?????? | | ##########?##### | | ! #??????????#???? | | ## ### ############### #??????????#?### | | # ###+###########???# "" #??????????#?#"" | | !# ## #???# """" #??????????#?#"" | | # ##! ! #???# """" #??????????#?#"" | | # ## #???# "" #??????????#?#"" | | # ## #???# #####??????#?#" | | # ## = #???# #??????#?#"" | | ## ## ##### #??????#?#"" | | # # """" + "" #??????#?# " | | # "T # """" ##### """" #??????#?# " | | # "" + """" #???# """" #??????#?# " | | # # """" #???# "" #??????#?#"" | | ## ## #???# #??????#?#"" | | ?# ## #???# #??????#?# | | ?# ################??# #??????#?# | | ?# #????????# #### ########## | | ?# #????????# T" | | ?# #????????# " | +----------------------------------------------------+ Best States ------------- Heat Dissipation 110 Energy Generation 53 Energy Capacity 590 Matter Stores 700 Matter Capacity 700 Sight Range 21 Robot Scan Range 16 Terrain Scan Density 10 ECM Strength 1 Additional Mass Support 25 Armor Coverage 2100 Resistance: TH 50 Resistance: EX 50 Propulsion Shielding 90 Point Defense Rating 320 Evasion (%) 70 Targeting Accuracy 12 Recoil Reduction 6 Offensive Hacking 56 Defensive Hacking 14 Item Schematics ----------------- Flamer | -6/Zion | Free Beamcaster | -6/Zion | Free Hvy. Riot Gun | -6/Zion | Free Slug Cannon | -6/Zion | Free Ripper | -6/Zion | Free Arc Thrower | -6/Zion | Free Hvy. Battle Rifle | -6/Zion | Free Phase Shifter | -6/Zion | Archive Lrn. Tractor Beam | -6/Zion | Archive KE Penetrator | -6/Zion | Archive Imp. Hacking Suite | -6/Zion | Archive Lyr. Heavy Armor Plating | -6/Zion | Archive Thermal Shield | -6/Zion | Archive HERF Cannon | -6/Zion | Archive Myomer Leg | -6/Zion | Archive Imp. Particle Charger | -6/Zion | Archive Imp. Shock Absorption System | -6/Zion | Archive Force Field | -6/Zion | Archive Imp. Focal Shield | -6/Zion | Archive Arm. Leg | -6/Zion | Archive Power Amplifier | -6/Zion | Archive Assault Drone Bay | -4/Zhirov | Free Exp. Heat Sink | -4/Zhirov | Free Exp. Optical Array | -4/Zhirov | Free Imp. Arc Thrower | -4/Zhirov | Free Robot Schematics ------------------ R-10 Processor | -6/Zion | Archive A-02 Transporter | -6/Zion | Archive C-55 Analyst | -3/Research | Hacked Fabricated ------------ Nothing Repaired ---------- Centrium Heavy Treads | 16% | -2/Testing Structural Scanner | 15% | -2/Testing Alien Tech Used ----------------- Integrated Dissipator Achievements -------------- Sorry Old Pal What Is This Thing? Challenges ------------ None Game ------ Seed ServoRelayExoskeleton Manual? 0 Play Time 03:53:24 Cumulative 208.0 hours Start 2025.06.04 @ 16:54:28 End 2025.06.04 @ 20:52:08 Sessions 1 Manual Loads 0 Difficulty Rogue Special Mode None Game No. 106 Rogue 106 Adventurer 0 Explorer 0 Win Type 0 Total 14 Types 6/0/5/1/2/0/0/0/0/0 Lore% 78 Gallery% 67 Achievement% 65 Wizard Run 0 Options --------- Layout 1 ASCII 0 Keyboard 0 Movement Numpad Keybinds 0 Fullscreen 1 Font 24/Smallcaps Map View 50x35 Zoom Use 0% Tactical HUD 1 Map Filters NONE Filters NONE Steam 1 RUN: 0230d289-676d-43ba-99d0-49fadfbb082b